Workbook

Sheet Sheet1
A1: WEIGHT PERCENT | E1: Raw Data NORMALIZED to sum to 100%
A3: WELL NAME | B3: Berea Project - Boone Co Coal 835
A4: JOB # | B4: 15-0601
A5: SAMPLE ID | B5: 1 | C5: 2 | D5: 3 | E5: 4 | F5: 5 | G5: 6 | H5: 7
A6: SAMPLE DEPTH | B6: 2747-2755 | C6: 2775-2785 | D6: 2785-2789 | E6: 2829-2833 | F6: 2833-2843 | G6: 2843-2854 | H6: 2854-2866
A8: NON-CLAY FRACTION
A9: Quartz | B9: 38.26177691 | C9: 23.93047964 | D9: 28.12137711 | E9: 29.83367717 | F9: 37.49608942 | G9: 31.48615317 | H9: 28.89146049
A10: K-Feldspar | B10: 0.7040997749 | C10: 0.4930637584 | D10: 0.2155058248 | E10: 0.6511387402 | F10: 0.197792497 | G10: 0.2336987975 | H10: 0.2731406127
A11: Plagioclase | B11: 6.388842614 | C11: 3.684534639 | D11: 4.499539425 | E11: 4.847065791 | F11: 6.084305838 | G11: 5.167244089 | H11: 5.062080194
A12: Organic Carbon (TOC) | B12: 0.324 | C12: 3.39 | D12: 2.52 | E12: 0.231 | F12: 0.329 | G12: 0.335 | H12: 0.372
A13: Apatite | B13: 0.01091283036 | C13: 0 | D13: 0 | E13: 0 | F13: 0 | G13: 0 | H13: 0
A14: Pyrite | B14: 0.6979110765 | C14: 2.440159509 | D14: 2.017288164 | E14: 0.2481480177 | F14: 0.6566504495 | G14: 0.2360356276 | H14: 0
A15: Marcasite | B15: 0 | C15: 1.098446994 | D15: 0.4714798795 | E15: 0 | F15: 0 | G15: 0 | H15: 0
A16: Calcite | B16: 0 | C16: 0 | D16: 0 | E16: 0 | F16: 0 | G16: 0 | H16: 0
A17: Dolomite | B17: 0 | C17: 0 | D17: 0 | E17: 0 | F17: 0 | G17: 0 | H17: 0
A18: Siderite | B18: 1.051251452 | C18: 0.2649487675 | D18: 0.5552501908 | E18: 1.958619706 | F18: 0.8818437088 | G18: 1.34517554 | H18: 1.127113835
A19: Anatase | B19: 0.9197510028 | C19: 0.6919942424 | D19: 0.6505610967 | E19: 0.663800804 | F19: 0.8342570998 | G19: 0.8646156262 | H19: 0.8931013812
A20: TOTAL | B20: =SUM(B9:B19) -> 48.35854566 | C20: =SUM(C9:C19) -> 35.99362755 | D20: =SUM(D9:D19) -> 39.05100169 | E20: =SUM(E9:E19) -> 38.43345023 | F20: =SUM(F9:F19) -> 46.47993901 | G20: =SUM(G9:G19) -> 39.66792285 | H20: =SUM(H9:H19) -> 36.61889651
A22: CLAY FRACTION
A23: Mixed-Layer ILLITE/SMECTITE (Includes R3) | B23: 7.480382828 | C23: 8.955171993 | D23: 8.706543963 | E23: 6.141728565 | F23: 6.478293581 | G23: 6.118851338 | H23: 7.718576045
A24: Illite+Mica | B24: 34.57844777 | C24: 47.79087483 | D24: 43.08788777 | E24: 46.18809408 | F24: 37.90456588 | G24: 45.15117209 | H24: 46.45361373
A25: Chlorite | B25: 5.005131375 | C25: 3.029457392 | D25: 4.360913899 | E25: 4.674199185 | F25: 5.62054966 | G25: 5.75085667 | H25: 5.566982124
A26: Kaolinite | B26: 4.577492368 | C26: 4.23086823 | D26: 4.793652676 | E26: 4.562527934 | F26: 3.516651869 | G26: 3.311197053 | H26: 3.641931595
A27: TOTAL | B27: =SUM(B23:B26) -> 51.64145434 | C27: =SUM(C23:C26) -> 64.00637245 | D27: =SUM(D23:D26) -> 60.94899831 | E27: =SUM(E23:E26) -> 61.56654977 | F27: =SUM(F23:F26) -> 53.52006099 | G27: =SUM(G23:G26) -> 60.33207715 | H27: =SUM(H23:H26) -> 63.38110349
A29: GRAND TOTAL | B29: =B27+B20 -> 100 | C29: =C27+C20 -> 100 | D29: =D27+D20 -> 100 | E29: =E27+E20 -> 100 | F29: =F27+F20 -> 100 | G29: =G27+G20 -> 100 | H29: =H27+H20 -> 100
A31: % Expandable Layers in I/S | B31: 14.86327983 | C31: 11.82942594 | D31: 11.69307295 | E31: 13.12477928 | F31: 15.47686826 | G31: 16.15863318 | H31: 15.64730949
A32: % I/S to Illite in <1.0um Fraction | B32: 23.28228593 | C32: 18.02625949 | D32: 20.3320415 | E32: 14.30062639 | F32: 18.23888218 | G32: 14.31408142 | H32: 16.78512597
A33: % Expandable I/S Layers in sample | B33: 1.115444272 | C33: 1.096517377 | D33: 1.044380937 | E33: 0.8079546938 | F33: 1.005946527 | G33: 0.9920460969 | H33: 1.212259086
A36: Comments
